bitfinex/quotes_SOLUSD_20260103
["timestamp","ask_amount","ask_price","bid_price","bid_amount"]
[1767482225794,0.69502497,133.37,133.34,0.70228577]
[1767482226999,0.69502497,133.38,133.35,2.33626312]
[1767482227180,137.2211242,133.4,133.34,7.49955995]
[1767482227181,0.69502497,133.39,133.34,26.24862249]
[1767482227496,0.69502497,133.39,133.35,1.63397735]
[1767482229085,0.69502497,133.39,133.36,7.49850029]
[1767482229292,0.69502497,133.39,133.36,9.13247764]
[1767482229484,0.69502497,133.4,133.37,0.70228577]
[1767482229685,0.69502497,133.4,133.36,9.83476341]
[1767482229883,0.69502497,133.4,133.37,0.70228577]
[1767482231078,0.69502497,133.4,133.37,8.20004271]
[1767482232172,0.64943146,133.4,133.37,8.20004271]
[1767482233892,9.12921855,133.42,133.37,8.20004271]
[1767482234190,1.63397735,133.42,133.38,0.70228577]
[1767482234397,2.32900232,133.42,133.38,0.70228577]
[1767482234597,0.69502497,133.42,133.38,1.63397735]
[1767482234778,0.69502497,133.42,133.39,0.70228577]
[1767482235473,2.32900232,133.41,133.37,8.20004271]
[1767482235669,2.32900232,133.4,133.37,0.70228577]
[1767482235887,2.32900232,133.4,133.36,8.20058131]
[1767482236100,0.69502497,133.39,133.36,8.20058131]
[1767482236296,2.32900232,133.39,133.36,0.70228577]
[1767482237199,0.69502497,133.39,133.36,0.70228577]
[1767482237495,0.69502497,133.39,133.36,8.20077039]
[1767482242086,0.69502497,133.39,133.36,7.49848462]
[1767482243396,0.69502497,133.39,133.33,13.68]
[1767482243397,2.32900232,133.37,133.33,8.20226781]
[1767482243599,1.63397735,133.37,133.33,8.20226781]
[1767482243786,7.49684889,133.39,133.33,8.20226781]
[1767482243989,1.63397735,133.37,133.33,8.20226781]
[1767482244805,1.60397736,133.37,133.33,8.20226781]
[1767482245009,1.63397735,133.38,133.34,8.20187185]
[1767482245584,2.32900232,133.38,133.34,8.20187185]
[1767482245790,0.69502497,133.37,133.34,8.20187185]
[1767482249212,0.66502498,133.37,133.34,8.20187185]
[1767482250011,22.81042731,133.4,133.35,0.65988495]
[1767482250588,22.81042731,133.4,133.36,0.65988495]
[1767482250992,9.13042731,133.4,133.36,0.65988495]
[1767482251410,9.78843313,133.4,133.36,8.1581392]
[1767482252219,0.65800582,133.4,133.37,0.67596819]
[1767482253518,0.65800582,133.4,133.37,8.17377963]
[1767482254617,0.68756566,133.41,133.38,0.67596819]
[1767482254834,23.4963232,133.43,133.39,0.67596819]
[1767482255342,2.32154301,133.42,133.39,0.67596819]
[1767482256027,0.68756566,133.42,133.39,0.67596819]
[1767482256707,0.68756566,133.42,133.39,9.13076378]
[1767482257022,0.68756566,133.42,133.39,7.49678643]
[1767482257223,0.68756566,133.42,133.39,9.13076378]
[1767482258129,0.68756566,133.42,133.39,7.49678643]
[1767482258303,0.68756566,133.42,133.39,9.13076378]
[1767482258703,0.68756566,133.42,133.39,7.49678643]
[1767482261925,0.68756566,133.42,133.38,9.80724285]
[1767482262131,2.32154301,133.42,133.38,8.1732655]
[1767482262516,0.68756566,133.42,133.38,8.1732655]
[1767482262910,2.32154301,133.42,133.39,8.17275551]
[1767482263342,0.68756566,133.42,133.39,8.17275551]
[1767482266624,0.68756566,133.42,133.39,7.49678732]
[1767482269735,0.68756566,133.42,133.39,8.17275551]
[1767482269939,0.68756566,133.42,133.39,9.80673286]
[1767482270617,0.68756566,133.42,133.39,10.72227191]
[1767482272838,0.68756566,133.44,133.41,0.67596819]
[1767482273041,0.68756566,133.44,133.41,3.22548459]
[1767482273335,0.68756566,133.45,133.42,0.67596819]
[1767482274339,0.68756566,133.45,133.41,8.1713459]
[1767482275920,0.68756566,133.45,133.42,0.67596819]
[1767482276333,0.68756566,133.45,133.41,7.49537771]
[1767482277048,0.68756566,133.46,133.43,8.17053462]
[1767482277228,0.68756566,133.47,133.44,2.5495164]
[1767482277429,0.68756566,133.49,133.45,3.22548459]
[1767482277629,0.68756566,133.49,133.45,0.67596819]
[1767482278418,10.72850273,133.49,133.45,0.67596819]
[1767482279132,0.68756566,133.48,133.44,10.71911964]
[1767482280830,0.68756566,133.48,133.45,0.66975325]
[1767482281953,10.7472883,133.5,133.46,0.66975325]
[1767482282158,0.70706531,133.5,133.46,3.15926965]
[1767482283021,0.70706531,133.5,133.46,2.5495164]
[1767482284048,0.70706531,133.5,133.47,0.66975325]
[1767482284247,8.1966521,133.52,133.48,0.66975325]
[1767482284448,10.7461685,133.52,133.48,0.60975325]
[1767482284939,0.70706531,133.51,133.48,0.60975325]
[1767482285145,3.25658171,133.51,133.47,7.49209073]
[1767482285336,0.70706531,133.52,133.48,2.5495164]
[1767482286143,8.19681764,133.52,133.48,2.5495164]
[1767482286337,8.19681764,133.52,133.48,0.66975325]
[1767482286646,8.19681764,133.52,133.48,3.21926965]
[1767482287551,0.70706531,133.5,133.47,0.66975325]
[1767482288450,0.70706531,133.5,133.47,8.16200403]
[1767482289151,0.70706531,133.5,133.47,10.71152043]
[1767482289953,8.19741075,133.51,133.48,2.5495164]
[1767482290834,8.19664788,133.52,133.48,10.71096912]
[1767482291049,10.74616428,133.52,133.48,10.71096912]
[1767482291357,0.70706531,133.51,133.48,10.71096912]
[1767482293364,0.70706531,133.51,133.48,8.16145272]
[1767482293570,0.70706531,133.51,133.48,7.49169947]
[1767482295161,0.70706531,133.51,133.47,7.49232037]
[1767482295370,0.70706531,133.51,133.47,10.04183677]
[1767482297164,0.70706531,133.51,133.47,7.49232037]
[1767482297364,0.70706531,133.51,133.48,2.5495164]
[1767482297572,0.70706531,133.51,133.48,3.21926965]
[1767482298868,21.87641444,133.53,133.49,0.66975325]
[1767482299069,0.70706531,133.52,133.49,0.66975325]
[1767482301152,0.70706531,133.52,133.48,10.71059057]
[1767482301759,0.70706531,133.52,133.48,0.66975325]
[1767482301760,0.70706531,133.51,133.48,0.66975325]
[1767482301948,0.70706531,133.51,133.47,10.7113934]
[1767482302774,0.70706531,133.51,133.48,0.66975325]
[1767482302961,3.25658171,133.51,133.48,0.66975325]
[1767482303572,3.25658171,133.51,133.48,8.1614536]
[1767482303987,0.70706531,133.51,133.48,8.1614536]
[1767482304574,0.70706531,133.53,133.49,0.66975325]
[1767482306081,0.70706531,133.53,133.49,8.16068076]
[1767482306245,0.70706531,133.52,133.49,8.16068076]
[1767482310173,0.70016713,133.51,133.48,8.2125035]
[1767482310586,0.70016713,133.51,133.48,7.49156989]
[1767482311289,0.70016713,133.51,133.48,8.2125035]
[1767482312061,0.71721548,133.5,133.47,8.15471997]
[1767482312460,0.71721548,133.49,133.46,8.15527971]
[1767482315771,0.71721548,133.48,133.45,0.66262851]
[1767482315984,0.71721548,133.48,133.45,8.15569933]
[1767482316893,0.71721548,133.48,133.46,7.49283137]
[1767482318103,0.71721548,133.49,133.46,8.15545988]
[1767482318681,0.71721548,133.49,133.45,8.1558532]
[1767482318896,3.26673188,133.49,133.45,8.1558532]
[1767482319084,0.71721548,133.48,133.44,10.70605023]
[1767482319289,0.71721548,133.47,133.44,7.49390532]
[1767482320797,2.5495164,133.48,133.44,8.15653383]
[1767482320972,0.71721548,133.48,133.45,0.66262851]
[1767482322598,0.71721548,133.48,133.44,7.49390532]
[1767482322785,0.71721548,133.48,133.44,8.15653383]
[1767482326710,0.71721548,133.47,133.44,8.15653383]
[1767482329102,8.20806084,133.5,133.46,0.66262851]
[1767482329310,0.71721548,133.5,133.47,0.66262851]
[1767482329598,0.71721548,133.5,133.47,0.60262851]
[1767482330992,0.71721548,133.5,133.47,8.09475586]
[1767482331584,0.71721548,133.53,133.49,0.66262851]
[1767482331789,0.71721548,133.53,133.5,0.54262851]
[1767482332009,0.71721548,133.53,133.5,0.48262851]
[1767482333821,0.71721548,133.53,133.5,9.60303933]
[1767482334186,0.71721548,133.54,133.5,9.60303933]
[1767482336307,0.71721548,133.54,133.5,9.54303933]
[1767482336708,0.71721548,133.54,133.5,7.91319946]
[1767482336709,0.71721548,133.53,133.5,7.91319946]
[1767482336914,0.71721548,133.53,133.49,9.12084374]
[1767482338088,0.71721548,133.53,133.5,0.61865419]
[1767482339515,0.71721548,133.53,133.5,2.24849406]
[1767482342601,0.6738937,133.52,133.49,9.73949793]
[1767482342918,0.6738937,133.52,133.49,2.24849406]
[1767482344422,0.6738937,133.52,133.49,9.73966952]
[1767482347726,8.16243659,133.54,133.51,0.61865419]
[1767482348021,8.16243659,133.54,133.51,0.55865419]
[1767482348223,8.16243659,133.54,133.5,1.62983987]
[1767482348423,0.6738937,133.53,133.5,1.62983987]
[1767482349726,0.6738937,133.53,133.49,1.62983987]
[1767482349925,0.6738937,133.53,133.49,2.18849406]
[1767482352224,0.6738937,133.53,133.49,9.67925379]
[1767482353823,0.6738937,133.52,133.49,7.49075973]
[1767482354004,0.6738937,133.51,133.49,7.49075973]
[1767482358733,0.6738937,133.51,133.47,21.73075861]
[1767482359038,0.6738937,133.48,133.45,8.05198228]
[1767482359237,2.30373357,133.49,133.45,8.05198228]
[1767482360628,0.6738937,133.49,133.46,0.55865419]
[1767482360829,2.30373357,133.49,133.46,0.55865419]
[1767482364036,0.6738937,133.49,133.46,8.05124359]
[1767482364335,0.6738937,133.49,133.46,9.68108346]
[1767482364632,8.16488877,133.5,133.46,9.68108346]
[1767482365438,8.16488877,133.5,133.47,0.55865419]
[1767482366834,9.79472864,133.5,133.47,0.55865419]
[1767482367038,0.6738937,133.49,133.46,0.55865419]
[1767482367238,0.6738937,133.49,133.44,28.41673776]
[1767482367522,0.6738937,133.49,133.44,27.85808357]
[1767482368539,0.6738937,133.49,133.44,28.41673776]
[1767482368916,0.6738937,133.49,133.45,0.55865419]
[1767482369442,9.79535692,133.49,133.45,0.55865419]
[1767482369642,9.79535692,133.49,133.45,8.05209532]
[1767482371137,0.69354273,133.48,133.45,8.05209532]
[1767482372226,0.68492964,133.49,133.45,8.05209532]
[1767482373346,0.68492964,133.49,133.45,7.49344113]
[1767482374240,0.68492964,133.49,133.45,8.05209532]
[1767482374548,0.68492964,133.49,133.45,7.49344113]
[1767482375248,0.68492964,133.48,133.44,9.12375612]
[1767482375435,0.68492964,133.48,133.44,8.39875612]
[1767482375636,0.68492964,133.48,133.44,9.10079016]
[1767482376337,0.68492964,133.48,133.44,8.19595029]
[1767482376535,0.68492964,133.48,133.45,7.49343887]
[1767482377246,0.68492964,133.48,133.45,8.19547291]
[1767482378329,8.1763642,133.49,133.46,0.70203404]
[1767482378650,8.17573281,133.5,133.46,2.33187391]
[1767482379759,8.17573281,133.5,133.47,0.70203404]
[1767482380553,0.68492964,133.49,133.46,9.12269627]
[1767482380754,8.17573281,133.5,133.47,0.70203404]
[1767482382257,9.80557268,133.5,133.47,0.70203404]
[1767482384453,0.68492964,133.49,133.46,7.4928564]
[1767482384641,0.68492964,133.48,133.45,8.19525825]
[1767482384958,0.65492965,133.48,133.45,8.19525825]
[1767482386160,9.77670734,133.48,133.45,0.70203404]
[1767482387359,8.14686747,133.48,133.45,0.70203404]
[1767482387966,9.77670734,133.48,133.45,0.70203404]
[1767482388465,8.14686747,133.48,133.45,0.70203404]
[1767482390559,9.77670734,133.48,133.45,0.70203404]
[1767482390763,9.12177769,133.48,133.45,0.70203404]
[1767482391656,9.80670733,133.48,133.45,0.70203404]
[1767482392459,10.72450903,133.48,133.45,0.70203404]
[1767482393666,13.68,133.52,133.43,16.20764157]
[1767482393667,0.68492964,133.46,133.43,0.70203404]
[1767482393846,10.04006373,133.47,133.4,81.14008099]
[1767482393847,3.23257121,133.45,133.42,0.70203404]
[1767482394368,0.68492964,133.44,133.41,0.70203404]
[1767482394555,3.23257121,133.44,133.41,0.70203404]
[1767482396563,0.68492964,133.42,133.4,13.68]
[1767482396768,0.68492964,133.42,133.39,0.70203404]
[1767482397276,0.65492965,133.42,133.39,0.70203404]
[1767482397479,2.54764157,133.43,133.39,0.70203404]
[1767482399355,10.04227182,133.43,133.39,8.19884134]
[1767482399556,10.72720146,133.43,133.39,8.19884134]
[1767482399759,10.72720146,133.43,133.4,0.70203404]
[1767482399760,8.17955989,133.43,133.4,0.70203404]
[1767482404276,18.73501199,133.44,133.4,0.70203404]
[1767482404577,0.6717472,133.45,133.42,0.69442301]
[1767482405469,0.6717472,133.45,133.42,8.18944196]
[1767482405669,0.6717472,133.45,133.42,0.69442301]
[1767482407875,0.6717472,133.45,133.42,8.18954861]
[1767482408380,10.04073782,133.46,133.43,0.69442301]
[1767482408971,10.71248502,133.46,133.43,0.69442301]
[1767482409372,0.6717472,133.47,133.44,0.69442301]
[1767482409881,0.6717472,133.47,133.44,10.73573123]
[1767482413885,0.6717472,133.47,133.43,13.68]
[1767482413886,7.49136037,133.49,133.46,0.69442301]
[1767482414276,10.71020273,133.5,133.46,0.69442301]
[1767482414600,0.32637229,133.49,133.45,10.73534145]
[1767482414968,0.32637229,133.49,133.46,3.24206458]
[1767482415167,0.32637229,133.49,133.47,2.54764157]
[1767482415371,0.32637229,133.49,133.46,3.24206458]
[1767482415967,0.32637229,133.49,133.46,10.73476877]
[1767482418469,8.16244221,133.5,133.47,3.24206458]
[1767482420370,8.16244221,133.5,133.47,0.69442301]
[1767482421589,8.16244221,133.5,133.47,3.24206458]
[1767482422395,0.32637229,133.49,133.47,2.54764157]
[1767482423895,10.03770554,133.52,133.47,10.03981046]
[1767482424091,10.03770554,133.52,133.47,10.73423347]
[1767482424593,10.03770554,133.52,133.47,10.03981046]
[1767482425199,10.03770554,133.52,133.47,10.73423347]
[1767482425501,10.03770554,133.52,133.48,0.69442301]
[1767482425701,0.63504389,133.51,133.48,0.63442301]
[1767482429579,0.63504389,133.51,133.48,0.57442301]
[1767482431003,8.12513422,133.51,133.48,0.57442301]
[1767482436310,8.12513422,133.51,133.48,0.51442301]
[1767482440089,0.2178,133.5,133.48,0.51442301]
[1767482440402,8.19432827,133.51,133.48,0.51442301]
[1767482442811,8.19432827,133.51,133.48,0.45442301]
[1767482443612,8.19432827,133.51,133.48,3.00206458]
[1767482444212,8.19432827,133.51,133.48,2.54764157]
[1767482444394,7.49009033,133.51,133.48,2.54764157]
[1767482444814,7.49009033,133.51,133.48,0.69979297]
[1767482447013,2.75633946,133.54,133.49,3.24743454]
[1767482447197,0.69928254,133.53,133.5,0.66751914]
[1767482447397,3.24692411,133.53,133.5,0.60751914]
[1767482448092,8.18823797,133.53,133.5,0.60751914]
[1767482448293,10.73587954,133.53,133.5,0.60751914]
[1767482449696,8.18823797,133.53,133.5,0.60751914]
[1767482450518,8.18823797,133.53,133.5,0.54751914]
[1767482451409,0.36435482,133.52,133.49,10.03869449]
[1767482452416,0.36435482,133.52,133.49,10.73848746]
[1767482454723,0.36435482,133.52,133.5,0.69979297]
[1767482456914,8.19319337,133.53,133.5,0.69979297]
[1767482457115,8.19319337,133.53,133.5,9.81949694]
[1767482457116,0.70423794,133.53,133.5,9.81949694]
[1767482457327,0.35944898,133.54,133.52,0.69979297]
[1767482457510,0.35944898,133.54,133.51,2.3290582]
[1767482457702,0.35944898,133.54,133.51,2.2690582]
[1767482459329,0.35944898,133.54,133.51,9.75891934]
[1767482460029,0.35944898,133.54,133.51,8.18965411]
[1767482460231,0.35944898,133.54,133.51,0.69979297]
[1767482460232,7.84793519,133.54,133.51,0.69979297]
[1767482460810,0.35944898,133.54,133.51,8.18983531]
[1767482463026,7.48800744,133.55,133.52,0.65452704]
[1767482463526,9.77859749,133.56,133.52,0.65452704]
[1767482463725,0.4014342,133.55,133.52,0.65452704]
[1767482465121,0.4014342,133.55,133.52,8.14382037]
[1767482465328,1.62926523,133.56,133.52,8.14382037]
[1767482465712,1.62926523,133.56,133.52,7.48929333]
[1767482466715,1.62926523,133.56,133.52,8.14382037]
[1767482467441,0.56588352,133.55,133.52,8.14382037]
[1767482468140,7.48735847,133.56,133.53,0.65452704]
[1767482468516,0.10362215,133.55,133.52,9.7730856]
[1767482468843,7.48735847,133.56,133.53,0.65452704]
[1767482469234,0.099,133.56,133.53,0.65452704]
[1767482469432,24.4626654,133.57,133.53,0.65452704]
[1767482469631,24.5616654,133.57,133.53,0.65452704]
[1767482470234,22.93240017,133.57,133.53,0.65452704]
[1767482470417,24.5616654,133.57,133.53,0.65452704]
[1767482470940,9.21497631,133.57,133.53,8.14334878]
[1767482471130,7.58571108,133.57,133.54,0.65452704]
[1767482471331,9.21497631,133.57,133.54,0.65452704]
[1767482472234,9.21497631,133.57,133.54,0.56720036]
[1767482473742,9.76880791,133.58,133.54,7.48837571]
[1767482474324,9.76880791,133.58,133.55,0.65452704]
[1767482474517,9.76880791,133.58,133.55,0.53452704]
[1767482475117,14.65066977,133.61,133.55,7.4877709]
[1767482475322,13.98884115,133.61,133.57,1.62926523]
[1767482475528,13.98884115,133.61,133.58,1.62926523]
[1767482476546,13.98884115,133.61,133.59,0.65452704]
[1767482476753,13.98884115,133.61,133.59,0.59452704]
[1767482478558,13.98884115,133.61,133.59,0.53452704]
[1767482478917,13.98884115,133.61,133.59,0.47452704]
[1767482479121,13.98884115,133.61,133.59,0.3863177]
[1767482481149,21.47333355,133.61,133.59,0.3863177]
[1767482482125,13.98884115,133.61,133.59,0.3863177]
[1767482487845,0.66182862,133.59,133.51,18.72461227]
[1767482488054,0.66182862,133.56,133.52,9.11842325]
[1767482488359,2.29109385,133.57,133.53,1.62926523]
[1767482488652,0.66182862,133.56,133.53,1.62926523]
[1767482488949,1.62926523,133.58,133.53,1.62926523]
[1767482489133,2.29109385,133.58,133.54,7.48839299]
[1767482489448,9.77722452,133.59,133.54,9.11765822]
[1767482489643,32.70001546,133.61,133.54,9.11765822]
[1767482489644,2.29109385,133.6,133.55,1.62926523]
[1767482489822,0.66182862,133.6,133.56,2.31533211]
[1767482490025,0.66182862,133.6,133.57,0.68606688]
[1767482491264,22.19656176,133.61,133.58,0.68606688]
[1767482491433,23.82582699,133.61,133.58,0.68606688]
[1767482492254,23.10276145,133.61,133.58,0.68606688]
[1767482494055,23.79947759,133.61,133.58,0.68606688]
[1767482496454,16.31482252,133.61,133.58,8.17211157]
[1767482496662,14.68555729,133.61,133.58,8.17211157]
[1767482500860,0.69671614,133.6,133.57,0.65282864]
[1767482501861,0.69671614,133.6,133.57,8.13952431]
[1767482502049,14.68555729,133.61,133.58,0.65282864]
[1767482502246,13.98884115,133.61,133.58,0.65282864]
[1767482502449,13.98884115,133.61,133.59,0.65282864]
[1767482502835,0.69671614,133.6,133.57,9.76878954]
[1767482504367,13.98884115,133.61,133.58,8.13890543]
[1767482504664,13.26384115,133.61,133.59,0.47905342]
[1767482506765,0.69671614,133.6,133.56,7.96611102]
[1767482506944,2.32598137,133.59,133.56,7.96611102]
[1767482507144,0.69671614,133.59,133.56,7.96611102]
[1767482512555,13.96055729,133.61,133.57,0.47905342]
[1767482512768,13.96055729,133.61,133.58,0.47905342]
[1767482512948,13.96055729,133.61,133.57,2.10831865]
[1767482514569,13.96055729,133.61,133.57,10.50798125]
[1767482517977,13.96055729,133.61,133.58,0.47905342]
[1767482518477,13.96055729,133.61,133.58,3.02165166]
[1767482518679,13.26384115,133.61,133.58,3.02165166]
[1767482520080,13.26384115,133.61,133.58,10.50729584]
[1767482520999,13.26384115,133.61,133.58,7.9646976]
[1767482521885,13.26384115,133.61,133.58,10.50729584]
[1767482522091,13.26384115,133.61,133.59,0.47905342]
[1767482522805,0.67342373,133.66,133.61,0.47905342]
[1767482522967,0.67342373,133.66,133.63,2.54259824]
[1767482523298,0.67342373,133.67,133.63,2.54259824]
[1767482524391,0.67342373,133.67,133.64,7.48278958]
[1767482525568,3.21602197,133.67,133.64,7.48278958]
[1767482525762,0.67342373,133.67,133.64,7.48278958]
[1767482525968,0.67342373,133.66,133.63,7.9622997]
[1767482526360,0.67342373,133.66,133.63,7.9022997]
[1767482526763,0.67342373,133.65,133.61,23.68668071]
[1767482527294,0.67342373,133.64,133.61,21.14408247]
[1767482527695,0.67342373,133.64,133.61,7.48408247]
[1767482528475,0.67342373,133.64,133.61,7.90313589]
[1767482528874,0.67342373,133.64,133.61,10.44573413]
[1767482529081,0.67342373,133.65,133.61,10.44573413]
[1767482529997,0.67342373,133.65,133.62,2.54259824]
[1767482530214,0.67342373,133.65,133.62,7.48363432]
[1767482530499,0.67342373,133.66,133.62,10.44528598]
[1767482531713,0.67342373,133.66,133.62,10.02623256]
[1767482533890,0.67342373,133.65,133.61,10.02706796]
[1767482535288,0.67342373,133.65,133.61,7.48446972]
[1767482535487,0.67342373,133.65,133.61,10.02706796]
[1767482535813,0.67342373,133.62,133.58,2.96165166]
[1767482536023,3.21602197,133.62,133.58,0.41905342]
[1767482536917,3.21602197,133.62,133.58,7.9048371]
[1767482539517,0.67342373,133.62,133.58,10.44743534]
[1767482540593,0.67342373,133.62,133.59,0.41905342]
[1767482540890,0.67342373,133.62,133.59,10.02810028]
[1767482541088,0.67342373,133.62,133.59,7.48550204]
[1767482541516,0.67342373,133.62,133.59,10.02810028]
[1767482542809,0.67342373,133.62,133.58,7.48615062]
[1767482543013,0.67342373,133.62,133.59,2.54259824]
[1767482543233,0.67342373,133.62,133.59,2.96165166]
[1767482544293,0.67342373,133.62,133.59,10.44675045]
[1767482545817,0.67342373,133.64,133.61,0.41905342]
[1767482546507,0.67342373,133.64,133.6,24.10662979]
[1767482547500,0.67342373,133.64,133.6,21.56403155]
[1767482547715,0.67342373,133.64,133.6,24.10662979]
[1767482549136,0.67342373,133.64,133.6,21.56403155]
[1767482549431,3.21602197,133.63,133.6,14.07905342]
[1767482549601,3.21602197,133.63,133.6,13.66]
[1767482550025,0.67342373,133.63,133.6,13.66]
[1767482551818,0.67342373,133.63,133.6,21.56394539]
[1767482552517,0.67342373,133.63,133.6,24.10654363]
[1767482552725,0.67342373,133.63,133.6,10.44654363]
[1767482554334,0.71342722,133.65,133.62,0.41905342]
[1767482554912,0.71342722,133.65,133.62,2.96165166]
[1767482555327,0.71342722,133.65,133.62,10.44529573]
[1767482555507,8.19523707,133.66,133.62,10.44529573]
[1767482555831,8.19523707,133.66,133.63,0.41905342]
[1767482556004,8.19523707,133.66,133.63,0.35905342]
[1767482557629,8.19523707,133.66,133.63,2.90165166]
[1767482557814,0.71342722,133.66,133.64,2.54259824]
[1767482558001,0.71342722,133.68,133.64,2.48259824]
[1767482558201,0.71342722,133.68,133.64,2.39426961]
[1767482559226,0.71342722,133.67,133.64,2.39426961]
[1767482560013,0.71342722,133.67,133.62,0.35905342]
[1767482560214,0.71342722,133.66,133.62,16.20259824]
[1767482560431,0.71342722,133.65,133.61,16.56165166]
[1767482560615,0.71342722,133.65,133.62,2.54259824]
[1767482561127,0.71342722,133.65,133.62,10.02646998]
[1767482561308,0.71342722,133.65,133.62,7.48387174]
[1767482561504,0.71342722,133.65,133.62,10.02646998]
[1767482562328,3.25602546,133.67,133.62,10.3855234]
[1767482562518,0.71342722,133.66,133.63,2.54259824]
[1767482563126,0.71342722,133.66,133.63,10.02570935]
[1767482563632,0.71342722,133.67,133.64,2.90165166]
[1767482564705,0.71342722,133.67,133.65,7.4822297]
[1767482565705,0.71342722,133.68,133.65,10.02482794]
[1767482566220,0.71342722,133.68,133.65,7.4822297]
[1767482567334,0.71342722,133.68,133.65,10.02482794]
[1767482567934,0.71342722,133.68,133.65,10.38388136]
[1767482569410,0.71342722,133.68,133.65,7.84128312]
[1767482570437,0.71342722,133.67,133.64,7.48264203]
[1767482570732,0.71342722,133.66,133.64,7.48264203]
[1767482574629,3.25602546,133.66,133.63,21.50220188]
[1767482575015,0.71342722,133.66,133.63,21.50220188]
[1767482576030,0.71342722,133.66,133.63,7.84220188]
[1767482579634,9.10704135,133.67,133.63,7.84220188]
[1767482580132,1.62593061,133.67,133.63,7.84220188]
[1767482580913,1.62593061,133.66,133.62,21.83698673]
[1767482581115,1.62593061,133.66,133.62,8.17698673]
[1767482581636,2.30216221,133.66,133.63,0.69316111]
[1767482582236,9.78390129,133.66,133.63,0.69316111]
[1767482582533,8.15797068,133.66,133.63,0.69316111]
[1767482587538,9.78390129,133.66,133.63,0.69316111]
[1767482589042,0.6762316,133.65,133.62,0.69316111]
[1767482589344,0.6762316,133.65,133.61,8.17763083]
[1767482589643,0.6762316,133.65,133.62,0.69316111]
[1767482589846,2.30216221,133.65,133.62,0.69316111]
[1767482590644,0.6762316,133.64,133.61,8.17763083]
[1767482590836,0.64623161,133.64,133.61,8.17763083]
[1767482591443,1.62593061,133.65,133.62,8.17698898]
[1767482591645,9.10766969,133.66,133.62,8.17698898]
[1767482592145,9.10766969,133.66,133.62,7.48382787]
[1767482592538,9.10766969,133.66,133.61,7.48446972]
[1767482592846,0.6762316,133.65,133.61,7.48446972]
[1767482593154,0.6762316,133.64,133.61,8.17763083]
[1767482593351,2.30216221,133.63,133.6,13.66]
[1767482593722,0.6762316,133.62,133.59,8.17836093]
[1767482593923,0.64623161,133.62,133.59,8.17836093]
[1767482595935,1.62593061,133.63,133.59,8.17836093]
[1767482596640,9.10938167,133.63,133.59,8.17836093]
[1767482598041,0.6762316,133.62,133.59,8.17836093]
[1767482598234,2.30216221,133.62,133.59,8.17836093]
[1767482598836,0.6762316,133.62,133.59,8.17836093]
[1767482599057,2.30216221,133.64,133.61,0.69316111]
[1767482599770,0.6762316,133.64,133.61,0.69316111]
[1767482600164,0.6762316,133.64,133.61,8.17755379]
[1767482600371,0.64623161,133.64,133.61,8.17755379]
[1767482602674,9.10856386,133.65,133.62,0.69316111]
[1767482602675,9.78479546,133.65,133.62,0.69316111]
[1767482602860,8.15886485,133.65,133.62,0.69316111]
[1767482603685,7.48182944,133.66,133.63,0.69316111]
[1767482603969,0.6762316,133.67,133.63,0.69316111]
[1767482604976,8.15742973,133.67,133.64,0.69316111]
[1767482605768,9.78288944,133.68,133.64,0.69316111]
[1767482607586,9.78288944,133.68,133.64,8.17589933]
[1767482608177,0.50990561,133.67,133.64,8.17589933]
[1767482609005,0.6762316,133.7,133.66,0.69316111]
[1767482609281,2.30216221,133.72,133.67,0.69316111]
[1767482609786,0.50990561,133.71,133.67,0.69316111]
[1767482610164,1.62593061,133.69,133.67,0.69316111]
[1767482610561,0.67456834,133.7,133.67,0.69316111]
[1767482610868,1.62593061,133.69,133.67,0.69316111]
[1767482611670,1.62593061,133.69,133.66,0.69001346]
[1767482614666,9.61755137,133.69,133.66,0.69001346]
[1767482615267,0.67293818,133.68,133.65,0.69001346]
[1767482615573,2.29886879,133.68,133.65,0.69001346]
[1767482616489,2.11267913,133.72,133.68,0.69001346]
[1767482616790,2.11267913,133.72,133.68,0.60278262]
[1767482617197,2.11267913,133.72,133.68,8.08323868]
[1767482617494,0.57310705,133.72,133.68,21.14045606]
[1767482618186,0.57310705,133.72,133.67,7.48090202]
[1767482618187,1.62593061,133.71,133.67,7.48090202]
[1767482618364,2.32428806,133.71,133.67,21.14090202]
[1767482618566,7.47775368,133.73,133.67,21.14090202]
[1767482618567,0.57435955,133.7,133.68,7.48053086]
[1767482619000,0.6996226,133.72,133.68,7.48053086]
[1767482619572,0.6996226,133.72,133.68,7.42053086]
[1767482620492,0.6996226,133.72,133.69,0.69001346]
[1767482621596,0.6996226,133.72,133.68,9.04646147]
[1767482621795,0.6996226,133.72,133.68,9.73647493]
[1767482622099,0.6996226,133.72,133.68,9.04646147]
[1767482622601,0.6996226,133.72,133.68,7.42053086]
[1767482622800,0.6996226,133.72,133.68,9.04646147]
[1767482623884,2.32555321,133.72,133.68,7.42053086]
[1767482624180,0.57310705,133.71,133.68,7.42053086]
[1767482624998,0.57310705,133.71,133.68,8.11054432]
[1767482627097,9.10368429,133.73,133.69,0.69001346]
[1767482627295,0.69835745,133.72,133.69,8.16975759]
[1767482627679,0.57435955,133.71,133.67,14.35001346]
[1767482628013,0.57435955,133.71,133.67,21.83077266]
[1767482629401,0.69711747,133.7,133.67,21.1407592]
[1767482629592,0.69711747,133.7,133.68,13.66]